[Event "Titled Tuesday Blitz March 22 Early 2022"]
[White "Pesotskiy, Mikhail"]
[Black "Perez Gormaz, Matias"]
[WhiteFideId "34164453"]
[BlackFideId "3406342"]
[WhiteElo "2010"]
[BlackElo "2327"]
[Result "0-1"]
[Round "05"]
[TimeControl "180+1"]
[Date "2022.03.22"]
[WhiteClock "0:00:14"]
[BlackClock "0:00:06"]

1. d4 {[%clk 0:02:59]}  Nf6 {[%clk 0:02:59]} 2. c4 {[%clk 0:03:00]}  e6 {[%clk 0:03:00]} 3. Nc3 {[%clk 0:03:00]}  Bb4 {[%clk 0:03:00]} 4. Qc2 {[%clk 0:03:01]}  d6 {[%clk 0:02:56]} 5. Nf3 {[%clk 0:02:55]}  Nbd7 {[%clk 0:02:56]} 6. Bd2 {[%clk 0:02:54]}  e5 {[%clk 0:02:56]} 7. e3 {[%clk 0:02:54]}  O-O {[%clk 0:02:55]} 8. Be2 {[%clk 0:02:54]}  Re8 {[%clk 0:02:53]} 9. O-O {[%clk 0:02:54]}  c6 {[%clk 0:02:36]} 10. a3 {[%clk 0:02:53]}  Ba5 {[%clk 0:02:34]} 11. Rfd1 {[%clk 0:02:47]}  e4 {[%clk 0:02:31]} 12. Ne1 {[%clk 0:02:46]}  d5 {[%clk 0:02:32]} 13. Qb3 {[%clk 0:02:41]}  Nf8 {[%clk 0:02:28]} 14. Rac1 {[%clk 0:02:37]}  Bc7 {[%clk 0:02:19]} 15. cxd5 {[%clk 0:02:35]}  cxd5 {[%clk 0:02:20]} 16. Nb5 {[%clk 0:02:35]}  Bb8 {[%clk 0:02:20]} 17. f4 {[%clk 0:01:59]}  exf3 {[%clk 0:02:16]} 18. Nxf3 {[%clk 0:01:59]}  Ng6 {[%clk 0:02:14]} 19. Be1 {[%clk 0:01:54]}  a6 {[%clk 0:02:11]} 20. Nc3 {[%clk 0:01:52]}  Rxe3 {[%clk 0:02:11]} 21. Bd2 {[%clk 0:01:43]}  Re8 {[%clk 0:02:10]} 22. Bg5 {[%clk 0:01:44]}  h6 {[%clk 0:01:56]} 23. Bxf6 {[%clk 0:01:44]}  Qxf6 {[%clk 0:01:57]} 24. Qxd5 {[%clk 0:01:24]}  Nf4 {[%clk 0:01:52]} 25. Qc4 {[%clk 0:01:15]}  b5 {[%clk 0:01:51]} 26. Qb3 {[%clk 0:01:07]}  Bb7 {[%clk 0:01:46]} 27. Re1 {[%clk 0:00:57]}  Ba7 {[%clk 0:01:11]} 28. Kh1 {[%clk 0:00:47]}  Nxg2 {[%clk 0:01:08]} 29. Kxg2 {[%clk 0:00:46]}  Rxe2+ {[%clk 0:01:02]} 30. Nxe2 {[%clk 0:00:47]}  g5 {[%clk 0:00:54]} 31. h3 {[%clk 0:00:42]}  h5 {[%clk 0:00:42]} 32. Qe3 {[%clk 0:00:40]}  g4 {[%clk 0:00:39]} 33. hxg4 {[%clk 0:00:31]}  hxg4 {[%clk 0:00:38]} 34. Ng1 {[%clk 0:00:20]}  Kg7 {[%clk 0:00:15]} 35. Qe5 {[%clk 0:00:18]}  gxf3+ {[%clk 0:00:14]} 36. Kf1 {[%clk 0:00:15]}  Bxd4 {[%clk 0:00:12]} 37. Qxf6+ {[%clk 0:00:14]}  Bxf6 {[%clk 0:00:13]} 38. Rc7 {[%clk 0:00:12]}  Bd5 {[%clk 0:00:13]} 39. Rd1 {[%clk 0:00:12]}  Rd8 {[%clk 0:00:12]} 40. Kf2 {[%clk 0:00:11]}  Bh4+ {[%clk 0:00:09]} 41. Ke3 {[%clk 0:00:10]}  Bg5+ {[%clk 0:00:09]} 42. Kf2 {[%clk 0:00:10]}  Bh4+ {[%clk 0:00:07]} 43. Ke3 {[%clk 0:00:11]}  f2 {[%clk 0:00:08]} 44. Nh3 {[%clk 0:00:10]}  Be6 {[%clk 0:00:06]} 45. Nxf2 {[%clk 0:00:10]}  Bxf2+ {[%clk 0:00:05]} 46. Ke2 {[%clk 0:00:09]}  Bg4+ {[%clk 0:00:06]} 47. Kxf2 {[%clk 0:00:10]}  Rxd1 {[%clk 0:00:06]} 48. Rc6 {[%clk 0:00:11]}  Rd2+ {[%clk 0:00:07]} 49. Kg3 {[%clk 0:00:11]}  Be6 {[%clk 0:00:07]} 50. Rxa6 {[%clk 0:00:12]}  Rxb2 {[%clk 0:00:08]} 51. Rb6 {[%clk 0:00:12]}  Rb3+ {[%clk 0:00:08]} 52. Kf4 {[%clk 0:00:12]}  Rxa3 {[%clk 0:00:09]} 53. Rxb5 {[%clk 0:00:13]}  Kf6 {[%clk 0:00:10]} 54. Rb6 {[%clk 0:00:13]}  Ra4+ {[%clk 0:00:10]} 55. Ke3 {[%clk 0:00:14]}  Rc4 {[%clk 0:00:11]} 56. Kf3 {[%clk 0:00:15]}  Ke5 {[%clk 0:00:10]} 57. Ke3 {[%clk 0:00:16]}  Bd5 {[%clk 0:00:10]} 58. Rb8 {[%clk 0:00:14]}  Rc3+ {[%clk 0:00:09]} 59. Kd2 {[%clk 0:00:14]}  Rh3 {[%clk 0:00:09]} 60. Re8+ {[%clk 0:00:14]}  Kd4 {[%clk 0:00:10]} 61. Re2 {[%clk 0:00:14]}  Ra3 {[%clk 0:00:09]} 62. Re7 {[%clk 0:00:14]}  Ra2+ {[%clk 0:00:09]} 63. Ke1 {[%clk 0:00:15]}  f5 {[%clk 0:00:08]} 64. Re8 {[%clk 0:00:13]}  Be4 {[%clk 0:00:08]} 65. Rb8 {[%clk 0:00:13]}  Ke3 {[%clk 0:00:07]} 66. Rb3+ {[%clk 0:00:14]}  Bd3 {[%clk 0:00:08]} 67. Rxd3+ {[%clk 0:00:11]}  Kxd3 {[%clk 0:00:07]} 68. Kf1 {[%clk 0:00:12]}  f4 {[%clk 0:00:08]} 69. Kg1 {[%clk 0:00:13]}  Ke3 {[%clk 0:00:08]} 70. Kh1 {[%clk 0:00:13]}  f3 {[%clk 0:00:08]} 71. Kg1 {[%clk 0:00:14]}  Rb2 {[%clk 0:00:07]} 72. Kh1 {[%clk 0:00:13]}  Kf2 {[%clk 0:00:07]} 73. Kh2 {[%clk 0:00:13]}  Rb5 {[%clk 0:00:06]} 74. Kh1 {[%clk 0:00:14]}  Rh5# {[%clk 0:00:06]} 0-1


[Site "https://www.chess.com"]

[Event "Titled Tuesday Blitz March 22 Early 2022"]
[White "Petrova, Irina"]
[Black "Karas, Marek"]
[WhiteFideId "14124122"]
[BlackFideId "14928558"]
[WhiteElo "1993"]
[BlackElo "2271"]
[Result "0-1"]
[Round "05"]
[TimeControl "180+1"]
[Date "2022.03.22"]
[WhiteClock "0:00:17"]
[BlackClock "0:00:28"]

1. e4 {[%clk 0:03:00]}  g6 {[%clk 0:02:58]} 2. d4 {[%clk 0:03:00]}  Bg7 {[%clk 0:02:58]} 3. Nc3 {[%clk 0:03:00]}  a6 {[%clk 0:02:58]} 4. Be3 {[%clk 0:02:58]}  b5 {[%clk 0:02:58]} 5. h4 {[%clk 0:02:58]}  h5 {[%clk 0:02:58]} 6. f3 {[%clk 0:02:48]}  Bb7 {[%clk 0:02:58]} 7. Qd2 {[%clk 0:02:46]}  d6 {[%clk 0:02:58]} 8. Nh3 {[%clk 0:02:41]}  Nd7 {[%clk 0:02:58]} 9. O-O-O {[%clk 0:02:40]}  b4 {[%clk 0:02:57]} 10. Ne2 {[%clk 0:02:38]}  a5 {[%clk 0:02:56]} 11. Ng5 {[%clk 0:02:36]}  e6 {[%clk 0:02:57]} 12. d5 {[%clk 0:02:30]}  exd5 {[%clk 0:02:49]} 13. exd5 {[%clk 0:02:29]}  Ngf6 {[%clk 0:02:49]} 14. Nf4 {[%clk 0:02:21]}  O-O {[%clk 0:02:36]} 15. g4 {[%clk 0:02:17]}  hxg4 {[%clk 0:02:32]} 16. h5 {[%clk 0:02:17]}  Nxh5 {[%clk 0:02:27]} 17. Nxh5 {[%clk 0:02:17]}  gxh5 {[%clk 0:02:28]} 18. Rxh5 {[%clk 0:02:13]}  Nf6 {[%clk 0:02:25]} 19. Rh1 {[%clk 0:02:09]}  Nxd5 {[%clk 0:02:24]} 20. Qh2 {[%clk 0:02:04]}  Re8 {[%clk 0:02:19]} 21. Qh7+ {[%clk 0:01:56]}  Kf8 {[%clk 0:02:20]} 22. Bd4 {[%clk 0:01:53]}  Qxg5+ {[%clk 0:02:19]} 23. Kb1 {[%clk 0:01:51]}  Bxd4 {[%clk 0:02:18]} 24. Bb5 {[%clk 0:01:40]}  c5 {[%clk 0:02:06]} 25. Bxe8 {[%clk 0:01:25]}  Rxe8 {[%clk 0:02:04]} 26. fxg4 {[%clk 0:01:19]}  Ne3 {[%clk 0:01:44]} 27. Rh5 {[%clk 0:00:42]}  Qxh5 {[%clk 0:01:34]} 28. gxh5 {[%clk 0:00:41]}  Nxd1 {[%clk 0:01:33]} 29. Qh6+ {[%clk 0:00:36]}  Ke7 {[%clk 0:01:30]} 30. Qg5+ {[%clk 0:00:32]}  Bf6 {[%clk 0:01:24]} 31. Qd2 {[%clk 0:00:32]}  Bf3 {[%clk 0:01:18]} 32. h6 {[%clk 0:00:31]}  Nxb2 {[%clk 0:01:06]} 33. h7 {[%clk 0:00:27]}  Na4 {[%clk 0:01:02]} 34. Qe3+ {[%clk 0:00:24]}  Kd7 {[%clk 0:00:56]} 35. Qg1 {[%clk 0:00:17]}  Nc3+ {[%clk 0:00:46]} 36. Kb2 {[%clk 0:00:16]}  Ne2+ {[%clk 0:00:29]} 37. Kb3 {[%clk 0:00:17]}  Nxg1 {[%clk 0:00:28]} 0-1


[Site "https://www.chess.com"]

[Event "Titled Tuesday Blitz March 22 Early 2022"]
[White "Pires, Marcos Vinicius Torsani"]
[Black "Garriga Cazorla, Pere"]
[WhiteFideId "2118939"]
[BlackFideId "32011601"]
[WhiteElo "2273"]
[BlackElo "2458"]
[Result "0-1"]
[Round "05"]
[TimeControl "180+1"]
[Date "2022.03.22"]
[WhiteClock "0:00:20"]
[BlackClock "0:00:20"]

1. e4 {[%clk 0:03:00]}  c5 {[%clk 0:02:58]} 2. c3 {[%clk 0:03:00]}  Nf6 {[%clk 0:02:56]} 3. e5 {[%clk 0:03:00]}  Nd5 {[%clk 0:02:56]} 4. d4 {[%clk 0:03:01]}  cxd4 {[%clk 0:02:57]} 5. Nf3 {[%clk 0:03:02]}  d6 {[%clk 0:02:57]} 6. cxd4 {[%clk 0:03:02]}  Nc6 {[%clk 0:02:55]} 7. Bc4 {[%clk 0:03:02]}  e6 {[%clk 0:02:52]} 8. O-O {[%clk 0:02:59]}  Be7 {[%clk 0:02:52]} 9. exd6 {[%clk 0:02:58]}  Bxd6 {[%clk 0:02:52]} 10. Nc3 {[%clk 0:02:57]}  Nxc3 {[%clk 0:02:49]} 11. bxc3 {[%clk 0:02:58]}  O-O {[%clk 0:02:49]} 12. Re1 {[%clk 0:02:56]}  b6 {[%clk 0:02:49]} 13. d5 {[%clk 0:02:47]}  exd5 {[%clk 0:02:44]} 14. Qxd5 {[%clk 0:02:36]}  Bb7 {[%clk 0:02:43]} 15. Qh5 {[%clk 0:02:35]}  Qd7 {[%clk 0:02:33]} 16. Ng5 {[%clk 0:02:18]}  Qf5 {[%clk 0:02:24]} 17. g4 {[%clk 0:01:59]}  Qg6 {[%clk 0:02:18]} 18. Qxg6 {[%clk 0:01:59]}  hxg6 {[%clk 0:02:19]} 19. Rd1 {[%clk 0:01:54]}  Rad8 {[%clk 0:02:16]} 20. Be3 {[%clk 0:01:52]}  Ne5 {[%clk 0:02:13]} 21. Be2 {[%clk 0:01:45]}  Be7 {[%clk 0:02:12]} 22. h4 {[%clk 0:01:39]}  Rfe8 {[%clk 0:01:54]} 23. f4 {[%clk 0:01:35]}  Nc6 {[%clk 0:01:47]} 24. Kf2 {[%clk 0:01:30]}  Na5 {[%clk 0:01:21]} 25. Bb5 {[%clk 0:01:23]}  Rf8 {[%clk 0:01:19]} 26. a4 {[%clk 0:01:15]}  Nb3 {[%clk 0:01:15]} 27. Rab1 {[%clk 0:01:10]}  Nc5 {[%clk 0:01:16]} 28. a5 {[%clk 0:01:00]}  Bxg5 {[%clk 0:01:11]} 29. hxg5 {[%clk 0:00:59]}  Ne4+ {[%clk 0:01:02]} 30. Kf1 {[%clk 0:00:48]}  Nxc3 {[%clk 0:00:59]} 31. Rxd8 {[%clk 0:00:48]}  Rxd8 {[%clk 0:01:00]} 32. Rb3 {[%clk 0:00:46]}  Nxb5 {[%clk 0:00:50]} 33. axb6 {[%clk 0:00:46]}  axb6 {[%clk 0:00:38]} 34. Bxb6 {[%clk 0:00:47]}  Rc8 {[%clk 0:00:31]} 35. Kf2 {[%clk 0:00:41]}  Bc6 {[%clk 0:00:30]} 36. Ke3 {[%clk 0:00:39]}  Nd6 {[%clk 0:00:30]} 37. Bd4 {[%clk 0:00:33]}  Bd7 {[%clk 0:00:28]} 38. Kf3 {[%clk 0:00:31]}  Be6 {[%clk 0:00:26]} 39. Rb6 {[%clk 0:00:28]}  Nc4 {[%clk 0:00:26]} 40. Ra6 {[%clk 0:00:25]}  Rd8 {[%clk 0:00:24]} 41. Ke4 {[%clk 0:00:21]}  Bxg4 {[%clk 0:00:21]} 42. Be5 {[%clk 0:00:18]}  Bf5+ {[%clk 0:00:15]} 43. Kf3 {[%clk 0:00:17]}  Rd3+ {[%clk 0:00:16]} 44. Ke2 {[%clk 0:00:17]}  Nxe5 {[%clk 0:00:16]} 45. fxe5 {[%clk 0:00:17]}  Rg3 {[%clk 0:00:16]} 46. Ra8+ {[%clk 0:00:17]}  Kh7 {[%clk 0:00:17]} 47. Kf2 {[%clk 0:00:18]}  Rxg5 {[%clk 0:00:17]} 48. Kf3 {[%clk 0:00:19]}  Be6 {[%clk 0:00:17]} 49. Kf4 {[%clk 0:00:19]}  Rf5+ {[%clk 0:00:18]} 50. Ke4 {[%clk 0:00:20]}  g5 {[%clk 0:00:18]} 51. Ra3 {[%clk 0:00:19]}  Kg6 {[%clk 0:00:18]} 52. Rh3 {[%clk 0:00:19]}  Rf4+ {[%clk 0:00:19]} 53. Ke3 {[%clk 0:00:20]}  Bxh3 {[%clk 0:00:20]} 0-1


[Site "https://www.chess.com"]

[Event "Titled Tuesday Blitz March 22 Early 2022"]
[White "Przybylski, Wojciech"]
[Black "Krylov, Ivan"]
[WhiteFideId "1117599"]
[BlackFideId "24128066"]
[WhiteElo "2133"]
[BlackElo "2258"]
[Result "1-0"]
[Round "05"]
[TimeControl "180+1"]
[Date "2022.03.22"]
[WhiteClock "0:02:40"]
[BlackClock "0:02:20"]

1. e4 {[%clk 0:02:58]}  c6 {[%clk 0:03:00]} 2. d4 {[%clk 0:02:56]}  d5 {[%clk 0:03:01]} 3. e5 {[%clk 0:02:56]}  c5 {[%clk 0:03:01]} 4. c4 {[%clk 0:02:55]}  Nc6 {[%clk 0:03:01]} 5. Nf3 {[%clk 0:02:55]}  dxc4 {[%clk 0:02:59]} 6. d5 {[%clk 0:02:54]}  Nb4 {[%clk 0:02:50]} 7. Bxc4 {[%clk 0:02:52]}  Bg4 {[%clk 0:02:40]} 8. O-O {[%clk 0:02:49]}  g6 {[%clk 0:02:29]} 9. a3 {[%clk 0:02:45]}  Na6 {[%clk 0:02:21]} 10. h3 {[%clk 0:02:42]}  Bxf3 {[%clk 0:02:20]} 11. Bb5+ {[%clk 0:02:40]} 1-0


[Site "https://www.chess.com"]

[Event "Titled Tuesday Blitz March 22 Early 2022"]
[White "Quirke, Jeffrey"]
[Black "Garv Gaur"]
[WhiteFideId "2013029"]
[BlackFideId "45030839"]
[WhiteElo "2227"]
[BlackElo "1950"]
[Result "0-1"]
[Round "05"]
[TimeControl "180+1"]
[Date "2022.03.22"]
[WhiteClock "0:00:02"]
[BlackClock "0:01:31"]

1. c4 {[%clk 0:03:00]}  e6 {[%clk 0:02:57]} 2. g3 {[%clk 0:02:58]}  d5 {[%clk 0:02:57]} 3. Bg2 {[%clk 0:02:58]}  Nf6 {[%clk 0:02:56]} 4. Nf3 {[%clk 0:02:58]}  d4 {[%clk 0:02:49]} 5. O-O {[%clk 0:02:54]}  c5 {[%clk 0:02:49]} 6. e3 {[%clk 0:02:54]}  Nc6 {[%clk 0:02:48]} 7. exd4 {[%clk 0:02:51]}  cxd4 {[%clk 0:02:49]} 8. d3 {[%clk 0:02:49]}  Bc5 {[%clk 0:02:45]} 9. Re1 {[%clk 0:02:49]}  O-O {[%clk 0:02:44]} 10. a3 {[%clk 0:02:48]}  a5 {[%clk 0:02:44]} 11. Ne5 {[%clk 0:02:45]}  Nxe5 {[%clk 0:02:36]} 12. Rxe5 {[%clk 0:02:46]}  Bd6 {[%clk 0:02:37]} 13. Re1 {[%clk 0:02:44]}  e5 {[%clk 0:02:33]} 14. Nd2 {[%clk 0:02:43]}  Bf5 {[%clk 0:02:33]} 15. Bxb7 {[%clk 0:02:38]}  Rb8 {[%clk 0:02:29]} 16. Be4 {[%clk 0:02:27]}  Bxe4 {[%clk 0:02:28]} 17. Nxe4 {[%clk 0:02:27]}  Nxe4 {[%clk 0:02:28]} 18. Rxe4 {[%clk 0:02:24]}  f5 {[%clk 0:02:28]} 19. Re1 {[%clk 0:02:24]}  Qf6 {[%clk 0:02:26]} 20. Rb1 {[%clk 0:02:15]}  Rfe8 {[%clk 0:02:24]} 21. Bd2 {[%clk 0:02:00]}  e4 {[%clk 0:02:23]} 22. Bxa5 {[%clk 0:01:53]}  e3 {[%clk 0:02:17]} 23. fxe3 {[%clk 0:01:48]}  dxe3 {[%clk 0:02:18]} 24. Bc3 {[%clk 0:01:43]}  Qg6 {[%clk 0:02:16]} 25. Qf3 {[%clk 0:01:31]}  f4 {[%clk 0:02:12]} 26. Kg2 {[%clk 0:01:16]}  fxg3 {[%clk 0:02:04]} 27. hxg3 {[%clk 0:01:13]}  Rf8 {[%clk 0:02:05]} 28. Qxe3 {[%clk 0:01:10]}  Rbe8 {[%clk 0:02:04]} 29. Qxe8 {[%clk 0:00:20]}  Rxe8 {[%clk 0:02:03]} 30. Rxe8+ {[%clk 0:00:20]}  Qxe8 {[%clk 0:02:03]} 31. Re1 {[%clk 0:00:17]}  Qg6 {[%clk 0:01:56]} 32. Re3 {[%clk 0:00:17]}  h5 {[%clk 0:01:51]} 33. Kf2 {[%clk 0:00:07]}  h4 {[%clk 0:01:41]} 34. gxh4 {[%clk 0:00:06]}  Bh2 {[%clk 0:01:40]} 35. Rf3 {[%clk 0:00:02]}  Qg1+ {[%clk 0:01:36]} 36. Ke2 {[%clk 0:00:02]}  Qg2+ {[%clk 0:01:35]} 37. Rf2 {[%clk 0:00:02]}  Qg4+ {[%clk 0:01:35]} 38. Rf3 {[%clk 0:00:02]}  Bg1 {[%clk 0:01:31]} 0-1


[Site "https://www.chess.com"]

[Event "Titled Tuesday Blitz March 22 Early 2022"]
[White "Ronka, Erik"]
[Black "Artemenko, Oleg"]
[WhiteFideId "505080"]
[BlackFideId "14201798"]
[WhiteElo "2264"]
[BlackElo "2287"]
[Result "0-1"]
[Round "05"]
[TimeControl "180+1"]
[Date "2022.03.22"]
[WhiteClock "0:00:25"]
[BlackClock "0:01:25"]

1. e4 {[%clk 0:02:59]}  e6 {[%clk 0:02:58]} 2. d4 {[%clk 0:02:58]}  d5 {[%clk 0:02:58]} 3. Nc3 {[%clk 0:02:58]}  Nf6 {[%clk 0:02:57]} 4. e5 {[%clk 0:02:59]}  Nfd7 {[%clk 0:02:57]} 5. f4 {[%clk 0:02:59]}  c5 {[%clk 0:02:58]} 6. Nf3 {[%clk 0:03:00]}  Nc6 {[%clk 0:02:58]} 7. Be3 {[%clk 0:03:00]}  Qb6 {[%clk 0:02:59]} 8. Na4 {[%clk 0:02:59]}  Qa5+ {[%clk 0:02:59]} 9. c3 {[%clk 0:02:59]}  b6 {[%clk 0:03:00]} 10. Bd2 {[%clk 0:02:58]}  c4 {[%clk 0:03:00]} 11. b4 {[%clk 0:02:58]}  Nxb4 {[%clk 0:02:59]} 12. cxb4 {[%clk 0:02:58]}  Bxb4 {[%clk 0:03:00]} 13. Qc2 {[%clk 0:02:51]}  Bxd2+ {[%clk 0:02:49]} 14. Nxd2 {[%clk 0:02:52]}  b5 {[%clk 0:02:49]} 15. Nc3 {[%clk 0:02:52]}  b4 {[%clk 0:02:49]} 16. Nce4 {[%clk 0:02:48]}  O-O {[%clk 0:02:45]} 17. Nd6 {[%clk 0:02:37]}  b3 {[%clk 0:02:38]} 18. Qc1 {[%clk 0:02:17]}  b2 {[%clk 0:02:34]} 19. Qxb2 {[%clk 0:02:15]}  c3 {[%clk 0:02:34]} 20. Qc2 {[%clk 0:02:15]}  cxd2+ {[%clk 0:02:35]} 21. Qxd2 {[%clk 0:02:16]}  Qa3 {[%clk 0:02:31]} 22. Bd3 {[%clk 0:02:04]}  Ba6 {[%clk 0:02:28]} 23. Rd1 {[%clk 0:01:39]}  f5 {[%clk 0:02:17]} 24. O-O {[%clk 0:01:26]}  Rab8 {[%clk 0:02:11]} 25. Bxa6 {[%clk 0:01:07]}  Qxa6 {[%clk 0:02:12]} 26. g4 {[%clk 0:01:08]}  fxg4 {[%clk 0:01:51]} 27. f5 {[%clk 0:01:09]}  exf5 {[%clk 0:01:51]} 28. Nxf5 {[%clk 0:01:08]}  Rf7 {[%clk 0:01:40]} 29. Qg5 {[%clk 0:01:02]}  Rbf8 {[%clk 0:01:35]} 30. Ne7+ {[%clk 0:00:57]}  Kh8 {[%clk 0:01:34]} 31. Rxf7 {[%clk 0:00:53]}  Rxf7 {[%clk 0:01:35]} 32. Re1 {[%clk 0:00:32]}  Qe6 {[%clk 0:01:31]} 33. Nf5 {[%clk 0:00:29]}  Rxf5 {[%clk 0:01:26]} 34. Qd8+ {[%clk 0:00:28]}  Rf8 {[%clk 0:01:25]} 35. Qc7 {[%clk 0:00:25]}  Qf5 {[%clk 0:01:25]} 0-1


[Site "https://www.chess.com"]

[Event "Titled Tuesday Blitz March 22 Early 2022"]
[White "Sailer, Mike"]
[Black "Milanovic, Marko"]
[WhiteFideId "2012901"]
[BlackFideId "980129"]
[WhiteElo "2109"]
[BlackElo "2159"]
[Result "1-0"]
[Round "05"]
[TimeControl "180+1"]
[Date "2022.03.22"]
[WhiteClock "0:00:05"]
[BlackClock "0:00:01"]

1. d4 {[%clk 0:02:59]}  d5 {[%clk 0:02:59]} 2. Nf3 {[%clk 0:02:57]}  Nf6 {[%clk 0:02:57]} 3. Bf4 {[%clk 0:02:57]}  c5 {[%clk 0:02:57]} 4. e3 {[%clk 0:02:58]}  Nc6 {[%clk 0:02:57]} 5. Nc3 {[%clk 0:02:58]}  a6 {[%clk 0:02:54]} 6. Be2 {[%clk 0:02:58]}  Qb6 {[%clk 0:02:49]} 7. Rb1 {[%clk 0:02:54]}  cxd4 {[%clk 0:02:47]} 8. exd4 {[%clk 0:02:43]}  Bg4 {[%clk 0:02:46]} 9. Ne5 {[%clk 0:02:42]}  Bxe2 {[%clk 0:02:42]} 10. Nxe2 {[%clk 0:02:42]}  e6 {[%clk 0:02:37]} 11. O-O {[%clk 0:02:39]}  Be7 {[%clk 0:02:29]} 12. c3 {[%clk 0:02:33]}  O-O {[%clk 0:02:22]} 13. Nc1 {[%clk 0:02:30]}  Rfc8 {[%clk 0:02:10]} 14. Ncd3 {[%clk 0:02:30]}  Ne4 {[%clk 0:02:10]} 15. Nxc6 {[%clk 0:02:22]}  bxc6 {[%clk 0:02:11]} 16. f3 {[%clk 0:02:15]}  Nf6 {[%clk 0:02:09]} 17. b4 {[%clk 0:02:04]}  a5 {[%clk 0:02:02]} 18. a3 {[%clk 0:02:05]}  axb4 {[%clk 0:02:00]} 19. axb4 {[%clk 0:02:05]}  Ra3 {[%clk 0:01:57]} 20. Qe1 {[%clk 0:01:49]}  Rca8 {[%clk 0:01:50]} 21. Bg5 {[%clk 0:01:41]}  Qb5 {[%clk 0:01:49]} 22. Bxf6 {[%clk 0:01:38]}  Bxf6 {[%clk 0:01:48]} 23. Nc5 {[%clk 0:01:35]}  Ra2 {[%clk 0:01:45]} 24. Rf2 {[%clk 0:01:27]}  R2a3 {[%clk 0:01:37]} 25. f4 {[%clk 0:01:16]}  Qc4 {[%clk 0:01:35]} 26. Rf3 {[%clk 0:01:06]}  Ra2 {[%clk 0:01:28]} 27. Qf1 {[%clk 0:00:51]}  Re2 {[%clk 0:01:10]} 28. Re1 {[%clk 0:00:30]}  Rxe1 {[%clk 0:00:59]} 29. Qxe1 {[%clk 0:00:29]}  Ra3 {[%clk 0:00:38]} 30. f5 {[%clk 0:00:19]}  Ra2 {[%clk 0:00:19]} 31. fxe6 {[%clk 0:00:19]}  Re2 {[%clk 0:00:18]} 32. exf7+ {[%clk 0:00:08]}  Kxf7 {[%clk 0:00:18]} 33. Qa1 {[%clk 0:00:07]}  Ra2 {[%clk 0:00:15]} 34. Qe1 {[%clk 0:00:07]}  Re2 {[%clk 0:00:13]} 35. Qg3 {[%clk 0:00:07]}  Qa2 {[%clk 0:00:08]} 36. h3 {[%clk 0:00:06]}  Qb1+ {[%clk 0:00:06]} 37. Kh2 {[%clk 0:00:07]}  Re7 {[%clk 0:00:06]} 38. Re3 {[%clk 0:00:06]}  Rxe3 {[%clk 0:00:01]} 39. Qxe3 {[%clk 0:00:07]}  Qf5 {[%clk 0:00:02]} 40. Qg3 {[%clk 0:00:06]}  Qc8 {[%clk 0:00:01]} 41. Qd6 {[%clk 0:00:05]} 1-0


[Site "https://www.chess.com"]

[Event "Titled Tuesday Blitz March 22 Early 2022"]
[White "Saldano Dayer, Horacio"]
[Black "Golubka, Petro"]
[WhiteFideId "103411"]
[BlackFideId "14114224"]
[WhiteElo "2419"]
[BlackElo "2346"]
[Result "1-0"]
[Round "05"]
[TimeControl "180+1"]
[Date "2022.03.22"]
[WhiteClock "0:00:32"]
[BlackClock "0:00:44"]

1. e4 {[%clk 0:03:00]}  g6 {[%clk 0:02:44]} 2. d4 {[%clk 0:02:59]}  Bg7 {[%clk 0:02:44]} 3. Nf3 {[%clk 0:02:58]}  c6 {[%clk 0:02:45]} 4. Nc3 {[%clk 0:02:57]}  b5 {[%clk 0:02:44]} 5. a4 {[%clk 0:02:48]}  b4 {[%clk 0:02:43]} 6. Ne2 {[%clk 0:02:48]}  a5 {[%clk 0:02:41]} 7. Ng3 {[%clk 0:02:48]}  h5 {[%clk 0:02:40]} 8. h4 {[%clk 0:02:47]}  Nh6 {[%clk 0:02:38]} 9. c3 {[%clk 0:02:35]}  bxc3 {[%clk 0:02:37]} 10. bxc3 {[%clk 0:02:35]}  d6 {[%clk 0:02:38]} 11. Bc4 {[%clk 0:02:32]}  Ng4 {[%clk 0:02:31]} 12. Ng5 {[%clk 0:02:28]}  e6 {[%clk 0:02:23]} 13. f3 {[%clk 0:02:26]}  Nf6 {[%clk 0:02:18]} 14. O-O {[%clk 0:02:10]}  O-O {[%clk 0:02:15]} 15. Qe2 {[%clk 0:02:05]}  d5 {[%clk 0:02:05]} 16. Bd3 {[%clk 0:02:02]}  Ba6 {[%clk 0:01:58]} 17. e5 {[%clk 0:02:00]}  Nh7 {[%clk 0:01:58]} 18. f4 {[%clk 0:01:53]}  Bxd3 {[%clk 0:01:53]} 19. Qxd3 {[%clk 0:01:53]}  Nxg5 {[%clk 0:01:54]} 20. fxg5 {[%clk 0:01:52]}  Nd7 {[%clk 0:01:55]} 21. Ba3 {[%clk 0:01:44]}  Re8 {[%clk 0:01:52]} 22. Rxf7 {[%clk 0:01:30]}  Kxf7 {[%clk 0:01:50]} 23. Rf1+ {[%clk 0:01:29]}  Nf6 {[%clk 0:01:35]} 24. Nxh5 {[%clk 0:00:45]}  gxh5 {[%clk 0:01:29]} 25. Qh7 {[%clk 0:00:44]}  Rh8 {[%clk 0:00:45]} 26. g6+ {[%clk 0:00:32]}  Ke8 {[%clk 0:00:44]} 27. Qxg7 {[%clk 0:00:32]} 1-0


[Site "https://www.chess.com"]

[Event "Titled Tuesday Blitz March 22 Early 2022"]
[White "Sanchez, Robert"]
[Black "Bashirli, Saadat"]
[WhiteFideId "2034360"]
[BlackFideId "13429990"]
[WhiteElo "2289"]
[BlackElo "1173"]
[Result "0-1"]
[Round "05"]
[TimeControl "180+1"]
[Date "2022.03.22"]
[WhiteClock "0:02:16"]
[BlackClock "0:01:08"]

1. e4 {[%clk 0:03:00]}  c5 {[%clk 0:02:58]} 2. Nf3 {[%clk 0:03:00]}  g6 {[%clk 0:02:56]} 3. d4 {[%clk 0:03:00]}  cxd4 {[%clk 0:02:51]} 4. c3 {[%clk 0:03:01]}  Nf6 {[%clk 0:02:50]} 5. e5 {[%clk 0:02:58]}  Nd5 {[%clk 0:02:47]} 6. Bc4 {[%clk 0:02:56]}  Nb6 {[%clk 0:02:45]} 7. Bb3 {[%clk 0:02:57]}  Bg7 {[%clk 0:02:34]} 8. cxd4 {[%clk 0:02:54]}  O-O {[%clk 0:02:33]} 9. O-O {[%clk 0:02:54]}  d6 {[%clk 0:02:32]} 10. Qe2 {[%clk 0:02:51]}  dxe5 {[%clk 0:02:27]} 11. dxe5 {[%clk 0:02:51]}  Nc6 {[%clk 0:02:23]} 12. h3 {[%clk 0:02:50]}  Bf5 {[%clk 0:02:19]} 13. Rd1 {[%clk 0:02:49]}  Qc7 {[%clk 0:02:16]} 14. Bf4 {[%clk 0:02:47]}  Qc8 {[%clk 0:01:53]} 15. Nc3 {[%clk 0:02:45]}  Be6 {[%clk 0:01:48]} 16. Bxe6 {[%clk 0:02:40]}  Qxe6 {[%clk 0:01:47]} 17. Ne4 {[%clk 0:02:31]}  Qc4 {[%clk 0:01:39]} 18. Qe1 {[%clk 0:02:22]}  Nb4 {[%clk 0:01:33]} 19. Rd4 {[%clk 0:02:15]}  Nc2 {[%clk 0:01:11]} 20. Rxc4 {[%clk 0:02:15]}  Nxe1 {[%clk 0:01:10]} 21. Rc7 {[%clk 0:02:15]}  Nxf3+ {[%clk 0:01:09]} 22. gxf3 {[%clk 0:02:16]}  Nd5 {[%clk 0:01:08]} 0-1


[Site "https://www.chess.com"]